bitfinex-derivatives/quotes_BTCF0:USTF0_20250327
["timestamp","ask_amount","ask_price","bid_price","bid_amount"]
[1743068847569,0.2146745,87518.0,87517.0,1.6782098]
[1743068849874,0.2146745,87518.0,87517.0,1.56396]
[1743068850566,0.2146745,87518.0,87517.0,1.6782098]
[1743068851773,0.2146745,87518.0,87517.0,1.56396]
[1743068852360,0.5754745,87518.0,87517.0,0.03286]
[1743068852564,0.1142498,87517.0,87516.0,0.20457115]
[1743068852765,0.1793298,87517.0,87516.0,0.20457115]
[1743068853058,0.1142563,87512.0,87511.0,0.27276153]
[1743068853267,0.1149363,87512.0,87511.0,0.27340153]
[1743068853459,0.1789363,87512.0,87511.0,0.27340153]
[1743068854175,0.1789363,87512.0,87511.0,0.00064]
[1743068854874,0.2889363,87512.0,87511.0,0.00064]
[1743068855175,0.2939363,87512.0,87511.0,0.00064]
[1743068855473,0.2989363,87512.0,87511.0,0.00064]
[1743068856358,0.6597363,87512.0,87511.0,0.00064]
[1743068858773,0.6597363,87512.0,87506.0,0.0321]
[1743068858774,0.1142628,87507.0,87506.0,0.0321]
[1743068859072,0.1149428,87507.0,87506.0,0.0321]
[1743068859378,0.2089428,87507.0,87506.0,0.0321]
[1743068860076,0.2129428,87507.0,87506.0,0.0321]
[1743068860661,0.22444926,87507.0,87506.0,0.0321]
[1743068860876,0.22844926,87507.0,87506.0,0.0321]
[1743068861585,0.22844926,87507.0,87506.0,0.0629]
[1743068863475,0.22844926,87507.0,87506.0,0.06358]
[1743068863674,0.22844926,87507.0,87506.0,0.0629]
[1743068867979,0.22844926,87507.0,87506.0,0.0635]
[1743068868178,0.22844926,87507.0,87506.0,0.0629]
[1743068873874,0.22844926,87507.0,87506.0,0.0635]
[1743068874373,0.22844926,87507.0,87506.0,0.0629]
[1743068875386,0.19734926,87507.0,87506.0,0.0629]
[1743068881679,0.19734926,87507.0,87506.0,0.0635]
[1743068883891,0.19734926,87507.0,87506.0,0.0629]
[1743068891499,0.19734926,87507.0,87506.0,0.0635]
[1743068891698,0.19734926,87507.0,87506.0,0.0629]
[1743068894099,0.19734926,87507.0,87506.0,0.0635]
[1743068895100,0.19734926,87507.0,87506.0,0.0629]
[1743068898198,0.19734926,87507.0,87496.0,0.00079793]
[1743068898199,0.64968646,87507.0,87496.0,0.00079793]
[1743068898496,0.1142902,87486.0,87485.0,0.40990517]
[1743068898703,0.5859302,87486.0,87485.0,0.41050517]
[1743068898902,0.6806302,87486.0,87485.0,0.0006]
[1743068900101,0.68922816,87486.0,87485.0,0.0006]
[1743068901396,0.57926816,87486.0,87485.0,0.0006]
[1743068901598,0.68922816,87486.0,87485.0,0.0006]
[1743068901993,0.68922816,87486.0,87485.0,0.0016]
[1743068904296,0.68922816,87486.0,87485.0,0.001]
[1743068905403,0.68922816,87486.0,87485.0,0.0335]
[1743068906107,0.68922816,87486.0,87485.0,0.001]
[1743068907894,0.54766816,87486.0,87485.0,0.001]
[1743068908102,0.5076702,87486.0,87485.0,0.0612]
[1743068908308,0.4759702,87486.0,87485.0,0.0612]
[1743068908506,0.1151702,87486.0,87485.0,1.6754915]
[1743068908705,0.1706398,87490.0,87489.0,0.1142863]
[1743068908706,0.2277829,87490.0,87489.0,0.1142863]
[1743068909008,0.2286229,87490.0,87489.0,0.1149663]
[1743068909207,0.2286229,87490.0,87489.0,0.06408]
[1743068909395,0.2286229,87490.0,87489.0,1.56408]
[1743068909799,0.2286229,87490.0,87489.0,1.6783663]
[1743068910303,0.0579831,87490.0,87489.0,1.6783663]
[1743068910503,0.0571431,87490.0,87489.0,1.6783663]
[1743068911008,0.0581431,87490.0,87489.0,1.6783663]
[1743068912803,0.0581431,87490.0,87489.0,0.1783663]
[1743068913005,0.0589431,87490.0,87489.0,0.1783663]
[1743068913402,0.0581431,87490.0,87489.0,0.1783663]
[1743068918807,0.0581431,87490.0,87489.0,0.1785263]
[1743068923513,0.0581431,87490.0,87489.0,0.1783663]
[1743068924013,0.1714158,87500.0,87489.0,0.1742]
[1743068924207,0.2293542,87500.0,87499.0,0.114268]
[1743068924409,0.2293542,87500.0,87499.0,1.614868]
[1743068924609,0.2285542,87500.0,87499.0,1.709568]
[1743068925516,0.2285542,87500.0,87499.0,1.72106958]
[1743068927020,0.2345542,87500.0,87499.0,1.72106958]
[1743068928820,0.2345542,87500.0,87499.0,0.22122958]
[1743068929130,0.2353542,87500.0,87499.0,0.22122958]
[1743068929512,0.2345542,87500.0,87499.0,0.209728]
[1743068930525,0.2645542,87500.0,87499.0,0.209728]
[1743068935926,0.2654342,87500.0,87499.0,0.209728]
[1743068937427,0.2654342,87500.0,87499.0,0.178228]
[1743068939514,0.0571412,87492.0,87476.0,0.77070517]
[1743068939711,0.1142955,87482.0,87481.0,0.34244056]
[1743068939915,0.1152955,87482.0,87481.0,0.34244056]
[1743068940133,0.1796955,87482.0,87481.0,0.34244056]
[1743068940323,0.1786955,87482.0,87481.0,0.34244056]
[1743068941025,0.1786955,87482.0,87481.0,0.37454056]
[1743068941214,0.1796955,87482.0,87481.0,0.37454056]
[1743068941419,0.1796955,87482.0,87481.0,1.87454056]
[1743068941615,0.1786955,87482.0,87481.0,1.87554056]
[1743068941922,0.1786955,87482.0,87481.0,1.98983736]
[1743068941923,0.19003215,87482.0,87481.0,1.98983736]
[1743068942127,0.22203215,87482.0,87481.0,2.02313736]
[1743068943219,0.2106955,87482.0,87481.0,2.02313736]
[1743068944328,0.2106955,87482.0,87481.0,1.6812968]
[1743068945820,0.1786955,87482.0,87481.0,1.6812968]
[1743068949727,0.0644,87482.0,87481.0,1.6812968]
[1743068949935,0.3608,87502.0,87489.0,0.1142863]
[1743068950130,0.0628,87501.0,87500.0,0.1142719]
[1743068950332,0.1453706,87501.0,87500.0,0.1142719]
[1743068950530,0.1453706,87501.0,87500.0,0.1149519]
[1743068950830,0.1453706,87501.0,87500.0,1.6480519]
[1743068951034,0.1770706,87501.0,87500.0,1.6480519]
[1743068951418,0.1800706,87501.0,87500.0,1.6480519]
[1743068953829,0.1830706,87501.0,87500.0,1.6480519]
[1743068954030,0.1830706,87501.0,87500.0,0.1480519]
[1743068954232,0.1841506,87501.0,87500.0,0.1480519]
[1743068954625,0.1830706,87501.0,87500.0,0.1480519]
[1743068962843,0.18411061,87501.0,87500.0,0.1480519]
[1743068963247,0.1830706,87501.0,87500.0,0.1480519]
[1743068964046,0.1840706,87501.0,87500.0,0.1480519]
[1743068967146,0.1513706,87501.0,87500.0,0.1480519]
[1743068967446,0.1212706,87501.0,87500.0,0.1480519]
[1743068967954,0.1212706,87501.0,87500.0,1.6480519]
[1743068968146,0.1530706,87501.0,87500.0,1.6480519]
[1743068968340,0.1202706,87501.0,87500.0,1.6480519]
[1743068968540,0.1202706,87501.0,87500.0,1.6781519]
[1743068969546,0.1202706,87501.0,87500.0,1.7090519]
[1743068970458,0.1202706,87501.0,87500.0,0.2090519]
[1743068970651,0.1212706,87501.0,87500.0,0.2090519]
[1743068971253,0.3612,87521.0,87500.0,0.09478]
[1743068971452,0.11443155,87509.0,87508.0,0.4750615]
[1743068971757,0.11443155,87509.0,87508.0,2.0855815]
[1743068972151,0.11443155,87509.0,87508.0,2.1483815]
[1743068972458,0.11743155,87509.0,87508.0,2.1483815]
[1743068972658,0.14913155,87509.0,87508.0,2.1483815]
[1743068972858,0.14913155,87509.0,87508.0,2.1797815]
[1743068973248,0.15213155,87509.0,87508.0,2.1797815]
[1743068973666,0.12043155,87509.0,87508.0,2.1797815]
[1743068973962,0.11743155,87509.0,87508.0,2.1797815]
[1743068974266,0.12443155,87509.0,87508.0,2.1797815]
[1743068974559,0.15773155,87509.0,87508.0,2.1797815]
[1743068974761,0.15773155,87509.0,87508.0,2.19104014]
[1743068978449,0.15773155,87509.0,87508.0,2.08112014]
[1743068978656,0.18803155,87509.0,87508.0,2.19100014]
[1743068985067,0.18803155,87509.0,87508.0,0.5070615]
[1743068985258,0.18903155,87509.0,87508.0,0.0006]
[1743068987657,0.29891155,87509.0,87508.0,0.0006]
[1743068987958,0.114268,87503.0,87502.0,0.20508207]
[1743068988263,0.114268,87503.0,87496.0,0.00017139]
[1743068988264,0.057136,87500.0,87496.0,0.00017139]
[1743068988462,0.4750759,87497.0,87496.0,1.50017139]
[1743068988666,0.4762359,87497.0,87496.0,1.50077139]
[1743068988859,0.5382359,87497.0,87496.0,1.50077139]
[1743068989063,0.5382359,87497.0,87496.0,0.00077139]
[1743068989269,0.5382359,87497.0,87496.0,0.00017139]
[1743068989663,0.5382359,87497.0,87496.0,0.00077139]
[1743068989866,0.5402359,87497.0,87496.0,0.00077139]
[1743068990069,0.5422359,87497.0,87496.0,0.00077139]
[1743068993368,0.55363555,87497.0,87496.0,0.00077139]
[1743068993575,0.55363555,87497.0,87496.0,0.00017139]
[1743068993869,0.55363555,87497.0,87496.0,1.50017139]
[1743068994072,0.55363555,87497.0,87496.0,1.50085139]
[1743068996064,0.55363555,87497.0,87496.0,0.00085139]
[1743068996372,0.55363555,87497.0,87496.0,0.00017139]
[1743069000869,0.66351555,87497.0,87496.0,0.00017139]
[1743069002173,0.55363555,87497.0,87496.0,0.00017139]
[1743069002383,0.66351555,87497.0,87496.0,0.00017139]
[1743069006382,0.30271555,87497.0,87496.0,0.00017139]
[1743069006675,0.66351555,87497.0,87496.0,0.00017139]
[1743069009077,0.63231555,87497.0,87496.0,0.00017139]
[1743069009276,0.63231555,87497.0,87496.0,0.00077139]
[1743069009774,0.66501555,87497.0,87496.0,0.00077139]
[1743069010380,0.63231555,87497.0,87496.0,0.00077139]
[1743069011282,0.52243555,87497.0,87496.0,0.00077139]
[1743069014586,0.52243555,87497.0,87496.0,0.00017139]
[1743069014979,0.52243555,87497.0,87496.0,0.00077139]
[1743069019592,0.52243555,87497.0,87496.0,0.00017139]
[1743069020689,0.72769662,87497.0,87496.0,0.00017139]
[1743069020893,0.75879662,87497.0,87496.0,0.00017139]
[1743069022492,0.75879662,87497.0,87496.0,0.00077139]
[1743069022796,0.75879662,87497.0,87496.0,0.00017139]
[1743069023494,0.75879662,87497.0,87496.0,0.00077139]
[1743069023692,0.75879662,87497.0,87496.0,0.00017139]
[1743069024292,0.16163555,87497.0,87496.0,0.00017139]
[1743069024493,0.00516,87497.0,87496.0,0.17978859]
[1743069025000,0.1194359,87497.0,87496.0,0.17978859]
[1743069025187,0.1194359,87497.0,87496.0,1.67978859]
[1743069025394,0.1182759,87497.0,87496.0,1.67978859]
[1743069027694,0.004,87497.0,87496.0,1.67978859]
[1743069027894,0.1182759,87497.0,87496.0,1.67978859]
[1743069030103,0.004,87497.0,87496.0,1.67978859]
[1743069030713,0.1182759,87497.0,87496.0,1.67978859]
[1743069032714,0.004,87497.0,87496.0,1.67978859]
[1743069033814,0.1182759,87497.0,87496.0,1.67978859]
[1743069036416,0.1182759,87497.0,87496.0,2.04058859]
[1743069038321,0.1493759,87497.0,87496.0,1.56551139]
[1743069038521,0.21557591,87497.0,87496.0,0.00081139]
[1743069039610,0.22759555,87497.0,87496.0,0.00081139]
[1743069042619,0.58839555,87497.0,87496.0,0.00081139]
[1743069043125,0.58839555,87497.0,87496.0,0.00017139]
[1743069043323,0.58839555,87497.0,87496.0,0.00085139]
[1743069045233,0.58839555,87497.0,87496.0,0.00017139]
[1743069045419,0.58839555,87497.0,87496.0,0.00077139]
[1743069045621,0.58839555,87497.0,87496.0,0.00017139]
[1743069046131,0.58839555,87497.0,87496.0,0.00077139]
[1743069046430,0.58839555,87497.0,87496.0,0.00017139]
[1743069046931,0.58839555,87497.0,87496.0,0.00081139]
[1743069047323,0.22759555,87497.0,87496.0,0.00081139]
[1743069048828,0.22759555,87497.0,87496.0,0.00017139]
[1743069049027,0.22759555,87497.0,87496.0,0.00077139]
[1743069052926,0.22759555,87497.0,87496.0,0.00017139]
[1743069053132,0.22759555,87497.0,87496.0,0.00077139]
[1743069056733,0.22759555,87497.0,87496.0,0.00017139]
[1743069057223,0.22759555,87497.0,87496.0,0.00085139]
[1743069057530,0.22759555,87497.0,87496.0,0.00017139]
[1743069057733,0.22759555,87497.0,87496.0,0.00077139]
[1743069057929,0.22759555,87497.0,87496.0,0.00017139]
[1743069061051,0.22759555,87497.0,87496.0,0.00077139]
[1743069066829,0.16259555,87497.0,87496.0,0.00077139]
[1743069067136,0.11947591,87497.0,87496.0,0.00077139]
[1743069067543,0.13115501,87497.0,87496.0,1.50077139]
[1743069067746,0.129955,87497.0,87496.0,1.50077139]
[1743069067932,0.162015,87497.0,87496.0,1.50077139]
[1743069069339,0.193315,87497.0,87496.0,1.50077139]
[1743069070031,0.193315,87497.0,87496.0,0.00077139]
[1743069070440,0.162015,87497.0,87496.0,0.00017139]
[1743069070745,0.162015,87497.0,87496.0,0.00137139]
[1743069075534,0.160855,87497.0,87496.0,0.00137139]
[1743069075739,0.162015,87497.0,87496.0,0.00137139]
[1743069078249,0.1503359,87497.0,87496.0,0.11564859]
[1743069078548,0.1194359,87497.0,87496.0,0.11564859]
[1743069078740,0.1182759,87497.0,87496.0,0.11564859]
[1743069078940,0.1182759,87497.0,87496.0,0.18064859]
[1743069081543,0.004,87497.0,87496.0,0.18064859]
[1743069081739,0.1182759,87497.0,87496.0,0.18064859]
[1743069082052,0.20526107,87508.0,87507.0,0.1142628]
[1743069082350,0.32068257,87508.0,87507.0,0.4756628]
[1743069082653,0.32068257,87508.0,87507.0,2.0673628]
[1743069082857,0.1142615,87508.0,87507.0,2.0673628]
[1743069083250,0.1182615,87508.0,87507.0,2.0673628]
[1743069084343,0.1182615,87508.0,87507.0,2.07924363]
[1743069084544,0.1222615,87508.0,87507.0,2.07924363]
[1743069091355,0.1535615,87508.0,87507.0,2.07924363]
[1743069095356,0.1535615,87508.0,87507.0,1.71844363]
[1743069099751,0.1842615,87508.0,87507.0,1.71844363]
[1743069099957,0.1842615,87508.0,87507.0,1.65684363]
[1743069100157,0.2146615,87508.0,87507.0,1.65684363]
[1743069102267,0.2146615,87508.0,87507.0,1.68824363]
[1743069106659,0.2146615,87508.0,87507.0,1.65684363]
[1743069107063,0.2146615,87508.0,87507.0,1.68854363]
[1743069108274,0.06886129,87520.0,87513.0,0.0571274]
[1743069108468,0.2037757,87517.0,87516.0,0.1142511]
[1743069108661,0.2049357,87517.0,87516.0,0.1776511]
[1743069109066,0.2050157,87517.0,87516.0,0.1776511]
[1743069109366,0.2049357,87517.0,87516.0,0.1776511]
[1743069111566,0.2079357,87517.0,87516.0,0.1776511]
[1743069111766,0.2109357,87517.0,87516.0,0.1776511]
[1743069113065,0.2109357,87517.0,87516.0,0.18953647]
[1743069119177,0.2109357,87517.0,87516.0,0.1776511]
[1743069119378,0.2109357,87517.0,87516.0,0.1459511]
[1743069122373,0.2109357,87517.0,87516.0,0.0006]
[1743069123977,0.1142563,87512.0,87510.0,0.0319]
[1743069124185,0.0632,87511.0,87510.0,0.0325]
[1743069124377,0.2075576,87511.0,87510.0,0.1467579]
[1743069126183,0.2105576,87511.0,87510.0,0.1467579]
[1743069127285,0.2105576,87511.0,87510.0,0.1767579]
[1743069128186,0.2135576,87511.0,87510.0,0.1767579]
[1743069135692,0.2135576,87511.0,87510.0,0.0325]
[1743069135987,0.2147176,87511.0,87510.0,0.0325]
[1743069136189,0.2135576,87511.0,87510.0,0.0325]
[1743069136486,0.2135576,87511.0,87510.0,0.1773589]
[1743069136698,0.2135576,87511.0,87510.0,0.0631]
[1743069137689,0.2135576,87511.0,87510.0,0.1773589]
[1743069140392,0.2135576,87511.0,87510.0,0.19222686]
[1743069142294,0.2135576,87511.0,87510.0,0.1773589]
[1743069146991,0.2135576,87511.0,87510.0,0.38244097]
[1743069147192,0.2135576,87511.0,87510.0,0.41484097]
[1743069148502,0.2135576,87511.0,87510.0,0.38244097]
[1743069150401,0.1831576,87511.0,87510.0,0.38244097]
[1743069152706,0.1831576,87511.0,87510.0,0.1773589]
[1743069153996,0.1503576,87511.0,87510.0,0.1773589]
[1743069154293,0.0571254,87517.0,87516.0,0.1713732]
[1743069154495,8e-05,87520.0,87518.0,0.1142471]
[1743069154690,0.0004,87537.0,87522.0,0.0571212]
[1743069154896,0.1146249,87537.0,87536.0,0.475025]
[1743069155101,0.1146249,87537.0,87536.0,0.475705]
[1743069155102,0.1157849,87537.0,87536.0,0.475705]
[1743069155298,0.1157849,87537.0,87536.0,1.975705]
[1743069155498,0.1146249,87537.0,87536.0,1.95618]
[1743069155704,0.1468249,87537.0,87536.0,1.96778731]
[1743069155904,0.1498249,87537.0,87536.0,1.98288975]
[1743069156099,0.0034,87537.0,87536.0,2.09711475]
[1743069156302,0.1142984,87541.0,87540.0,0.1142197]
[1743069156602,0.1154584,87541.0,87540.0,0.1148197]
[1743069156807,0.1154584,87541.0,87540.0,0.1764197]
[1743069157205,0.1783584,87541.0,87540.0,0.1764197]
[1743069163302,0.1783584,87541.0,87540.0,0.0622]
[1743069163795,0.1783584,87541.0,87540.0,0.0006]
[1743069169513,0.1142223,87538.0,87537.0,0.0627]
[1743069169716,0.11546231,87538.0,87537.0,0.06338]
[1743069169917,0.17706231,87538.0,87537.0,0.06338]
[1743069171321,0.17706231,87538.0,87537.0,0.1776036]
[1743069175519,0.17706231,87538.0,87537.0,0.06338]
[1743069175717,0.17706231,87538.0,87537.0,0.0627]
[1743069176419,0.17706231,87538.0,87537.0,0.06338]
[1743069177413,0.17706231,87538.0,87537.0,0.1776036]
[1743069178014,0.17706231,87538.0,87537.0,0.06338]
[1743069178222,0.20866231,87538.0,87537.0,0.06338]
[1743069179122,0.20866231,87538.0,87537.0,0.03158]
[1743069179320,0.20866231,87538.0,87537.0,0.0309]
[1743069179817,0.20866231,87538.0,87537.0,0.0315]
[1743069180415,0.20866231,87538.0,87537.0,0.0309]
[1743069180722,0.20866231,87538.0,87537.0,0.0315]
[1743069181315,0.20866231,87538.0,87537.0,0.0617]
[1743069181817,0.20866231,87538.0,87537.0,0.0611]
[1743069182018,0.20866231,87538.0,87537.0,0.0617]
[1743069184627,0.20866231,87538.0,87537.0,0.0315]
[1743069184826,0.20866231,87538.0,87537.0,0.0309]
[1743069185227,0.20866231,87538.0,87537.0,0.03158]
[1743069186027,0.20866231,87538.0,87537.0,0.00068]
[1743069186235,0.1142341,87529.0,87528.0,0.031]
[1743069186422,0.1156741,87529.0,87528.0,0.0316]
[1743069187239,0.1805741,87529.0,87528.0,0.0943]
[1743069187434,0.1922716,87529.0,87528.0,0.0943]
[1743069187626,0.1922716,87529.0,87528.0,0.0963]
[1743069188226,0.1922716,87529.0,87528.0,0.0943]
[1743069188437,0.1922716,87529.0,87528.0,0.0633]
[1743069188628,0.2244716,87529.0,87528.0,0.0633]
[1743069189533,0.1922716,87529.0,87528.0,0.0633]
[1743069192242,0.1922716,87529.0,87528.0,0.0627]
[1743069195737,0.1922716,87529.0,87528.0,0.0633]
[1743069198533,0.1922716,87529.0,87528.0,0.0627]
[1743069198834,0.1922716,87529.0,87528.0,0.06438]
[1743069199531,0.1922716,87529.0,87528.0,0.06338]
[1743069209441,0.1922716,87529.0,87528.0,0.0627]
[1743069210043,0.1922716,87529.0,87528.0,0.0641]
[1743069214140,0.1922716,87529.0,87528.0,0.0627]
[1743069214340,0.1922716,87529.0,87528.0,0.06406]
[1743069214946,0.1922716,87529.0,87528.0,0.1782954]
[1743069215142,0.1922716,87529.0,87528.0,0.06406]
[1743069219953,0.1922716,87529.0,87528.0,0.1782954]
[1743069220142,0.1922716,87529.0,87528.0,0.5390954]
[1743069220143,0.1156741,87529.0,87528.0,0.5390954]
[1743069220451,0.00144,87529.0,87528.0,0.5390954]
[1743069220748,8e-05,87530.0,87529.0,0.1142341]
[1743069220749,0.1142328,87530.0,87529.0,0.1142341]
[1743069221049,0.1143128,87530.0,87529.0,0.1769341]
[1743069221248,0.1156728,87530.0,87529.0,0.1769341]
[1743069221644,0.1156728,87530.0,87529.0,1.6769341]
[1743069221945,0.1143128,87530.0,87529.0,1.6769341]
[1743069222148,0.1444128,87530.0,87529.0,1.7887341]
[1743069222950,0.1772128,87530.0,87529.0,1.7887341]
[1743069223452,0.1772128,87530.0,87529.0,1.5627]
[1743069223752,0.1772128,87530.0,87529.0,0.0627]
[1743069223942,0.1785728,87530.0,87529.0,0.0627]
[1743069224137,0.1785728,87530.0,87529.0,0.1769341]
[1743069224346,0.1772128,87530.0,87529.0,0.1769341]
[1743069224745,0.1785728,87530.0,87529.0,0.1769341]
[1743069224948,0.1785728,87530.0,87529.0,0.0627]
[1743069225551,0.18993045,87530.0,87529.0,0.0627]
[1743069232040,0.18857045,87530.0,87529.0,0.0627]
[1743069232246,0.15721045,87530.0,87529.0,0.0627]
[1743069232650,0.1157528,87530.0,87529.0,0.0627]
[1743069232852,0.1142328,87530.0,87529.0,0.1769341]
[1743069234440,0.1456328,87530.0,87529.0,0.1769341]
[1743069240254,0.1142328,87530.0,87529.0,0.1769341]
[1743069240453,8e-05,87540.0,87534.0,0.0571134]
[1743069240655,8e-05,87540.0,87539.0,0.114221]
[1743069240849,0.1142997,87540.0,87539.0,0.289861]
[1743069241046,0.1156597,87540.0,87539.0,0.289861]
[1743069241257,0.1155797,87540.0,87539.0,1.789861]
[1743069241458,0.1142197,87540.0,87539.0,1.789861]
[1743069245255,0.1142197,87540.0,87539.0,1.8011609]
[1743069250855,0.1470197,87540.0,87539.0,1.8011609]
[1743069252564,0.0571088,87542.0,87541.0,0.1142184]
[1743069252763,0.0571088,87542.0,87541.0,0.1148184]
[1743069253257,0.0886088,87542.0,87541.0,0.1148184]
[1743069256367,0.0886088,87542.0,87541.0,0.4756184]
[1743069256866,0.1215088,87542.0,87541.0,0.1148184]
[1743069257071,0.1215088,87542.0,87541.0,0.4756184]
[1743069258461,0.1215088,87542.0,87541.0,0.4766184]
[1743069258862,0.1215088,87542.0,87541.0,0.4776184]
[1743069259364,0.1215088,87542.0,87541.0,0.1168184]
[1743069259566,0.1215088,87542.0,87541.0,0.4776184]
[1743069263271,0.1215088,87542.0,87541.0,0.4766184]
[1743069263471,0.1215088,87542.0,87541.0,0.4776184]
[1743069264069,0.1215088,87542.0,87541.0,0.1168184]
[1743069271274,0.1215088,87542.0,87541.0,0.1496184]
[1743069271880,0.1215088,87542.0,87541.0,0.1486184]
[1743069272178,0.1215088,87542.0,87541.0,0.1496184]
[1743069272676,0.1215088,87542.0,87541.0,0.1486184]
[1743069272877,0.1215088,87542.0,87541.0,0.1496184]
[1743069273675,0.1215088,87542.0,87541.0,0.1815184]
[1743069275278,0.1215088,87542.0,87541.0,0.0673]
[1743069275678,0.1215088,87542.0,87541.0,0.0354]
[1743069275979,0.1215088,87542.0,87541.0,0.0026]
[1743069276371,0.1228688,87542.0,87541.0,0.0016]
[1743069276570,0.1228688,87542.0,87541.0,0.0026]
[1743069278271,0.1228688,87542.0,87541.0,0.0016]
[1743069278472,0.1228688,87542.0,87541.0,0.0026]
[1743069289283,0.1228688,87542.0,87541.0,0.0331]
[1743069304402,0.0899688,87542.0,87541.0,0.1473184]
[1743069304706,0.0584688,87542.0,87541.0,0.1788184]
[1743069304893,0.0571088,87542.0,87541.0,0.0646]
[1743069305094,0.0571088,87542.0,87541.0,0.1788184]
[1743069305293,0.0880088,87542.0,87541.0,0.1788184]
[1743069305502,0.0880088,87542.0,87541.0,0.2091184]
[1743069307100,0.0880088,87542.0,87541.0,0.2208308]
[1743069307398,0.0880088,87542.0,87541.0,0.2091184]
[1743069309398,0.0894488,87542.0,87541.0,0.2091184]
[1743069309904,0.0880088,87542.0,87541.0,0.2091184]
[1743069312703,0.0893688,87542.0,87541.0,0.2091184]
[1743069317910,0.0584688,87542.0,87541.0,0.2091184]
[1743069318205,0.0571883,87543.0,87541.0,0.2091184]
[1743069318206,0.1142158,87543.0,87542.0,0.1142171]
[1743069318408,0.1142141,87545.0,87544.0,0.1142132]
[1743069318614,0.1142141,87545.0,87544.0,0.1148932]
[1743069318804,0.1155741,87545.0,87544.0,1.6148932]
[1743069319112,0.1142141,87545.0,87544.0,1.6148932]
[1743069322624,0.1457141,87545.0,87544.0,1.6148932]
[1743069324427,0.1457141,87545.0,87544.0,1.9756932]
[1743069326231,0.1457141,87545.0,87544.0,1.6148932]
[1743069326427,0.1457141,87545.0,87544.0,1.9756932]
[1743069328731,0.1457141,87545.0,87544.0,2.0084932]
[1743069329124,0.1457141,87545.0,87544.0,2.0396932]
[1743069329323,0.1457141,87545.0,87544.0,1.6788932]
[1743069329523,0.1457141,87545.0,87544.0,2.0396932]
[1743069331029,0.1770141,87545.0,87544.0,2.0396932]
[1743069333336,0.1770141,87545.0,87544.0,2.0406932]
[1743069333636,0.1770141,87545.0,87544.0,2.0416932]
[1743069335334,0.1770141,87545.0,87544.0,1.6808932]
[1743069335529,0.1770141,87545.0,87544.0,2.0406932]
[1743069335728,0.1770141,87545.0,87544.0,2.0416932]
[1743069336330,0.1770141,87545.0,87544.0,2.0406932]
[1743069336534,0.1770141,87545.0,87544.0,2.0416932]
[1743069337030,0.1770141,87545.0,87544.0,2.0406932]
[1743069337231,0.1770141,87545.0,87544.0,2.0416932]
[1743069343446,0.1770141,87545.0,87544.0,1.6808932]
[1743069343636,0.1770141,87545.0,87544.0,2.0416932]
[1743069347835,0.1770141,87545.0,87544.0,1.50268]
[1743069348041,0.2102141,87545.0,87544.0,0.00268]
[1743069348248,0.2115741,87545.0,87544.0,0.00268]
[1743069348945,0.2115741,87545.0,87544.0,0.20752404]
[1743069352053,0.2115741,87545.0,87544.0,0.00268]
[1743069352355,0.2115741,87545.0,87544.0,0.002]
[1743069356959,0.5723741,87545.0,87544.0,0.002]
[1743069363749,0.5723741,87545.0,87544.0,0.0333]
[1743069371353,0.2115741,87545.0,87544.0,0.0333]
[1743069371961,0.2115741,87545.0,87544.0,0.0339]
[1743069372163,0.1470741,87545.0,87544.0,0.0339]
[1743069372358,0.1470741,87545.0,87544.0,0.0643]
[1743069372663,0.1791741,87545.0,87544.0,0.0643]
[1743069372863,0.1791741,87545.0,87544.0,0.0339]
[1743069373063,0.1791741,87545.0,87544.0,0.0026]
[1743069373264,0.2097741,87545.0,87544.0,0.0026]
[1743069373463,0.1142184,87541.0,87540.0,0.0312]
[1743069373967,0.17977841,87541.0,87540.0,0.0312]
[1743069374467,0.1142341,87529.0,87525.0,8e-05]
[1743069374652,0.11587411,87529.0,87525.0,8e-05]
[1743069374965,0.1142432,87522.0,87521.0,0.70281195]
[1743069375368,0.14750321,87522.0,87521.0,0.70281195]
[1743069375576,0.1459432,87522.0,87521.0,0.70281195]
[1743069375868,0.17560321,87522.0,87521.0,0.70281195]
[1743069376058,0.17560321,87522.0,87521.0,0.34201195]
[1743069376459,0.17368321,87522.0,87521.0,0.34201195]
[1743069376658,0.17368321,87522.0,87521.0,0.34801195]
[1743069376858,0.18511998,87522.0,87521.0,0.34801195]
[1743069377064,0.18511998,87522.0,87521.0,0.35301195]
[1743069377464,0.17368321,87522.0,87521.0,0.35301195]
[1743069378765,0.17368321,87522.0,87521.0,0.01117139]
[1743069379763,0.17368321,87522.0,87521.0,0.04257139]
[1743069383676,0.17368321,87522.0,87521.0,0.07367139]
[1743069386072,0.1720432,87522.0,87521.0,0.07367139]
[1743069386266,0.17364321,87522.0,87521.0,0.07367139]
[1743069387170,0.17364321,87522.0,87521.0,0.01117139]
[1743069387373,0.17364321,87522.0,87517.0,8e-05]
[1743069387374,0.1142484,87518.0,87517.0,8e-05]
[1743069387671,0.1142484,87518.0,87499.0,0.5849925]
[1743069387672,0.114255,87513.0,87512.0,0.00045708]
[1743069387876,0.11581501,87513.0,87512.0,0.00045708]
[1743069388681,0.17471501,87513.0,87512.0,0.00045708]
[1743069389367,0.17471501,87513.0,87512.0,0.00245708]
[1743069389871,0.17471501,87513.0,87512.0,0.00345708]
[1743069390077,0.17471501,87513.0,87512.0,0.03485708]
[1743069393675,0.17471501,87513.0,87512.0,1.53485708]
[1743069395172,0.17471501,87513.0,87512.0,0.00345708]
[1743069395576,0.1142654,87505.0,87504.0,0.00017139]
[1743069395772,0.47662541,87505.0,87504.0,1.50017139]
[1743069395967,0.57152541,87505.0,87504.0,1.50017139]
[1743069396569,0.21072541,87505.0,87504.0,1.50017139]
[1743069396766,0.2091654,87505.0,87504.0,1.50017139]
[1743069396970,0.2091654,87505.0,87504.0,1.53497139]
[1743069398071,0.22095626,87505.0,87504.0,1.53497139]
[1743069403872,0.22255627,87505.0,87504.0,1.53497139]
[1743069404876,0.19135627,87505.0,87504.0,1.53497139]
[1743069411081,0.19135627,87505.0,87504.0,0.03497139]
[1743069411678,0.19135627,87505.0,87504.0,1.53497139]
[1743069412485,0.19135627,87505.0,87504.0,0.03497139]
[1743069413389,0.19135627,87505.0,87504.0,0.06817139]
[1743069421284,0.19135627,87505.0,87504.0,1.56817139]
[1743069423392,0.19135627,87505.0,87504.0,0.06817139]
[1743069423693,0.19135627,87505.0,87504.0,0.18243809]
[1743069423694,0.11586541,87505.0,87504.0,0.18243809]
[1743069423887,0.11586541,87505.0,87504.0,1.68243809]
[1743069424089,0.1142654,87505.0,87504.0,1.68243809]
[1743069424289,0.1142746,87498.0,87496.0,0.00053716]
[1743069424482,0.11583461,87498.0,87496.0,0.00053716]
[1743069424679,0.17903461,87498.0,87496.0,0.00053716]
[1743069424879,0.17903461,87498.0,87497.0,0.29799649]
[1743069425283,0.19079424,87498.0,87497.0,0.29799649]
[1743069425497,0.19179424,87498.0,87497.0,0.29799649]
[1743069426592,0.19279424,87498.0,87497.0,0.29799649]